Cogmind - Beta 15 @@@ ROGUE MODE // 2025.08.06 @ 12:32:24 Player: Capatat Result: Destroyed by G-47 Trooper with Particle Gun Performance ------------- Evolutions (1) 500 Regions Visited (3) 600 Robots Destroyed (6) 30 Value Destroyed (155) 155 Prototype IDs (2) 40 Alien Tech Used (0) 0 Bonus (200) 200 TOTAL SCORE: 1525 Bonus ------- Pacifist 200 Cogmind --------- Core Integrity 0/400 Matter 153/300 Energy 125/125 System Corruption 0% Temperature Cool (33) Movement Walking (260) Ox2 Location -9/Materials Parts ------- > --- POWER (2) -------- Light Ion Engine > --- PROPULSION (2) --- Aluminum Leg > --- UTILITY (3) ------ Large Storage Unit > --- WEAPON (2) ------- Light Assault Rifle > --- INVENTORY (15) --- EM Pulse Gun Particle Cannon Peak State ------------ > --- POWER ------------ Ion Engine Light Ion Engine > --- PROPULSION ------- Light Treads Light Treads > --- UTILITY ---------- Large Storage Unit Targeting Computer Medium Armor Plating > --- WEAPON ----------- Medium Laser Particle Cannon > --- INVENTORY -------- EM Pulse Gun EM Pulse Gun [Rating: 11] Favorites ----------- Power Ion Engine Engine Ion Engine Propulsion Light Treads Treads Light Treads Leg Aluminum Leg Utility Large Storage Unit Storage Large Storage Unit Processor Targeting Computer Protection Medium Armor Plating Weapon Medium Laser Energy Gun Medium Laser Energy Cannon Particle Cannon Ballistic Gun Light Assault Rifle Build | -11 -10 -10 -9 ------- Run | Yrd Mat Min Mat Slots Evolved 2 | . . . 2 Power 1 | . . . 1 Propulsion . | . . . . Utility 1 | . . . 1 Weapon . | . . . . Parts Attached 15 | 6 4 . 5 Power 2 | 1 . . 1 Engine 2 | 1 . . 1 Core . | . . . . Reactor . | . . . . Propulsion 3 | 2 . . 1 Treads 2 | 2 . . . Leg 1 | . . . 1 Wheel . | . . . . Hover . | . . . . Flight . | . . . . Utility 6 | 1 3 . 2 Device . | . . . . Storage 3 | 1 2 . . Processor 1 | . 1 . . Hackware . | . . . . Protection 2 | . . . 2 Artifact . | . . . . Weapon 4 | 2 1 . 1 Energy Gun 2 | 2 . . . Energy Cannon 1 | . 1 . . Ballistic Gun 1 | . . . 1 Ballistic Cannon . | . . . . Launcher . | . . . . Special Weapon . | . . . . Impact Weapon . | . . . . Slashing Weapon . | . . . . Piercing Weapon . | . . . . Special Melee Weapon . | . . . . Unidentified Prototypes . | . . . . Parts Lost 6 | . . . 6 Power 1 | . . . 1 Propulsion 2 | . . . 2 Utility 2 | . . . 2 Weapon 1 | . . . 1 Highest Loss Streak 6 | . . . 6 To Critical Strikes . | . . . . Average Backups 2 | 1 2 3 2 Power . | . 1 1 . Propulsion . | . . . . Utility . | . . . . Weapon 1 | 1 1 2 2 Tool/Special . | . . . . Unused Backups 1 | . . . 1 Power . | . . . . Propulsion . | . . . . Utility . | . . . . Weapon 1 | . . . 1 Tool/Special . | . . . . Average Slot Usage (%) 91 | . 94 100 83 Engine 14 | . 14 14 16 Treads 23 | . 28 28 18 Storage 13 | . 16 14 11 Processor 9 | . 6 14 9 Protection 2 | . . . 6 Energy Gun 17 | . 27 14 9 Energy Cannon 6 | . . 14 8 Peak Build Rating 11 | 6 8 8 11 Average Rating 7 | 4 6 8 8 On Entrance 5 | . 6 8 8 Naked Turns . | . . . . Heaviest Build 41 | 14 31 31 41 Greatest Support 40 | 40 40 40 40 Greatest Overweight (x) 8 | . . . 8 Average Overweight (x) . | . . . . Largest Inventory Capacity 15 | 8 15 15 15 Average Capacity 12 | 6 11 15 15 Most Carried 4 | 4 3 3 4 Average Carried 2 | 1 2 3 2 Final Capacity 15 | 8 15 15 15 Final Carried 3 | 2 3 3 2 Class Distribution -------------------- 100% | Mutant Dominant Class ---------------- Mutant | -10/Materials Mutant | -10/Mines Mutant | -9/Materials Resources | -11 -10 -10 -9 ----------- Run | Yrd Mat Min Mat Matter Collected 410 | 225 . 56 129 Remotely . | . . . . Salvage Created 183 | . . . 183 Parts 11 | . . . 11 Haulers Intercepted . | . . . . Recyclers Shooed . | . . . . Parts Field Recycled . | . . . . Retrieved Matter . | . . . . Parts Self-Destructed . | . . . . Prevented . | . . . . Kills | -11 -10 -10 -9 ------- Run | Yrd Mat Min Mat Combat Hostiles Destroyed 6 | . . . 6 Guns 4 | . . . 4 Cannons 2 | . . . 2 Classes Destroyed 2 | . . . 2 Swarmer 3 | . . . 3 Grunt 3 | . . . 3 Best Kill Streak 3 | . . . 3 Combat Bots Only 3 | . . . 3 Max Kills in Single Turn 1 | . . . 1 Gunslinging . | . . . . Exploded . | . . . . Melee . | . . . . Uniques/NPCs Destroyed . | . . . . Combat | -11 -10 -10 -9 -------- Run | Yrd Mat Min Mat Hostile Shots Fired 116 | . . . 116 Missed 34 | . . . 34 Hits 82 | . . . 82 Projectile 82 | . . . 82 Critical Strikes 3 | . . . 3 Damage Taken 1178 | . . . 1178 Core 408 | . . . 408 Absorbed by Shields . | . . . . Core Remaining (%) 100 | 100 . 100 . Volleys Fired 27 | . . . 27 Largest 2 | . . . 2 Hottest 118 | . . . 118 Shots Fired 54 | . . . 54 Gun 30 | . . . 30 Cannon 24 | . . . 24 Launcher . | . . . . Special . | . . . . Kinetic 3 | . . . 3 Thermal 51 | . . . 51 Explosive . | . . . . Electromagnetic . | . . . . Robot Hit Streak 7 | . . . 7 Robot Miss Streak 2 | . . . 2 Penetration Max . | . . . . Secondary Targets . | . . . . Shots Hit Robots 28 | . . . 28 Core Hits 12 | . . . 12 Critical Kills . | . . . . Critical Parts Destroyed . | . . . . Critical Strikes 1 | . . . 1 Burn 1 | . . . 1 Melee Attacks . | . . . . Impact . | . . . . Slashing . | . . . . Piercing . | . . . . Sneak Attacks . | . . . . Combat Hostiles . | . . . . Follow-up Attacks . | . . . . Damage Inflicted 407 | . . . 407 Guns 201 | . . . 201 Cannons 206 | . . . 206 Explosions . | . . . . Melee . | . . . . Ramming . | . . . . Kinetic 15 | . . . 15 Thermal 392 | . . . 392 Explosive . | . . . . Electromagnetic . | . . . . Impact . | . . . . Slashing . | . . . . Piercing . | . . . . Highest Corruption . | . . . . Average Corruption . | . . . . Corruption Purged . | . . . . Corruption Blocked . | . . . . Overload Shots . | . . . . Overflow Damage . | . . . . Projectiles . | . . . . Explosions . | . . . . Melee . | . . . . Knockbacks . | . . . . Impact . | . . . . Kinetic . | . . . . Secondary . | . . . . Self-Inflicted Damage . | . . . . Shots . | . . . . Rammed . | . . . . Targets Rammed . | . . . . Kicked . | . . . . Crushed . | . . . . Highest Temperature 846 | . . . 846 Average Temperature 301 | . . . 301 Received Heat Transfer 543 | . . . 543 Effects 26 | . . . 26 Shutdowns 3 | . . . 3 Energy Bleed 3 | . . . 3 Interference 2 | . . . 2 Matter Decay 6 | . . . 6 Short Circuit 1 | . . . 1 Damage (minor) 2 | . . . 2 Damage (major) 6 | . . . 6 Damage (core) 3 | . . . 3 Siege Activations . | . . . . Martial Activations . | . . . . Shielding Activations . | . . . . Robots Disrupted . | . . . . Combat Hostiles . | . . . . Robots Corrupted . | . . . . Combat Hostiles . | . . . . Parts Fried . | . . . . Impact Corruptions . | . . . . Robots Melted . | . . . . Combat Hostiles . | . . . . Parts Melted 3 | . . . 3 Heat Transferred 999 | . . . 999 Parts Sabotaged . | . . . . Parts Stolen . | . . . . Parts Stripped . | . . . . Power Chain Reactions . | . . . . Alert | -11 -10 -10 -9 ------- Run | Yrd Mat Min Mat Maximum Alert Level . | . . . . Low Security (%) 100 | 100 100 100 100 Level 1 . | . . . . Level 2 . | . . . . Level 3 . | . . . . Level 4 . | . . . . Level 5 . | . . . . High Security . | . . . . Max Security . | . . . . Peak Influence 91 | . 4 . 91 Initial . | . . . . Average 9 | . . . 28 Influence Increases 175 | . 4 . 171 Destroy 0b10 Robot/C 120 | . . . 120 Destroy Leader 30 | . . . 30 Successful Hack 9 | . 4 . 5 Disable Machine 15 | . . . 15 Destroy Structure 1 | . . . 1 Influence Decreases 174 | . 4 . 170 Time Decay 114 | . 4 . 110 Lost Part 60 | . . . 60 Squads Dispatched 1 | . . . 1 Investigation 1 | . . . 1 Extermination . | . . . . Reinforcement . | . . . . Assault . | . . . . Garrison . | . . . . Intercept . | . . . . Searches Triggered . | . . . . Construction Impeded . | . . . . Haulers Reinforced . | . . . . Active Scanning Responses . | . . . . Cargo Convoy Interrupts . | . . . . Stealth | -11 -10 -10 -9 --------- Run | Yrd Mat Min Mat Distress Signals . | . . . . Communications Jammed . | . . . . Distress Signals . | . . . . Times Spotted 12 | . . . 12 Peak Tracking Total 4 | . . . 4 Tactical Retreats . | . . . . Traps | -11 -10 -10 -9 ------- Run | Yrd Mat Min Mat Traps Triggered . | . . . . Indirectly . | . . . . Trap Hack Attempts . | . . . . Triggered . | . . . . Disarmed . | . . . . Reprogrammed . | . . . . Reused . | . . . . Traps Extracted . | . . . . Installed . | . . . . Triggered . | . . . . Machines | -11 -10 -10 -9 ---------- Run | Yrd Mat Min Mat Machines Disabled 1 | . . . 1 Max in Single Turn 1 | . . . 1 Machines Repaired . | . . . . Machines Dismantled . | . . . . Machines Sabotaged . | . . . . Overloaded Fab Kills . | . . . . Hacking | -11 -10 -10 -9 --------- Run | Yrd Mat Min Mat Machines Accessed 3 | . 1 . 2 Terminals 2 | . 1 . 1 Fabricators . | . . . . Repair Stations . | . . . . Recycling Units 1 | . . . 1 Scanalyzers . | . . . . Garrison Access . | . . . . Total Hacks 17 | . 5 . 12 Successful 11 | . 4 . 7 Failed 6 | . 1 . 5 Catastrophic . | . . . . Database Lockouts . | . . . . Manual . | . . . . Terminals 10 | . 5 . 5 Fabricators . | . . . . Repair Stations . | . . . . Recycling Units 7 | . . . 7 Scanalyzers . | . . . . Garrison Access . | . . . . Terminal Hacks 8 | . 4 . 4 Record 5 | . 3 . 2 Prototype ID Bank 1 | . 1 . . Alert Level 1 | . . . 1 Zone Layout 1 | . . . 1 Fabricator Hacks . | . . . . Repair Station Hacks . | . . . . Recycling Unit Hacks 3 | . . . 3 Process 1 | . . . 1 Report Inventory 1 | . . . 1 Retrieve Matter 1 | . . . 1 Scanalyzer . | . . . . Garrison Access Hacks . | . . . . Unauthorized Hacks . | . . . . Terminals . | . . . . Fabricators . | . . . . Repair Stations . | . . . . Recycling Units . | . . . . Scanalyzers . | . . . . Garrison Access . | . . . . Data Cores Recovered . | . . . . Used . | . . . . Hacking Detections 2 | . . . 2 Full Trace Events 1 | . . . 1 Feedback Events . | . . . . Feedback Blocked . | . . . . Robot Schematics Acquired . | . . . . Robots Built . | . . . . Authchips . | . . . . Time . | . . . . Total Robot Build Rating . | . . . . Part Schematics Acquired . | . . . . Parts Built . | . . . . Authchips . | . . . . Time . | . . . . Total Part Build Rating . | . . . . Parts Repaired . | . . . . Time . | . . . . Parts Recycled . | . . . . Recycled Matter . | . . . . Retrieved Matter . | . . . . Retrieved Components . | . . . . Parts Scanalyzed . | . . . . Part Schematics Acquired . | . . . . Parts Damaged . | . . . . Bothacking | -11 -10 -10 -9 ------------ Run | Yrd Mat Min Mat Used RIF Installer . | . . . . Robots Hacked . | . . . . Non-combat . | . . . . Combat . | . . . . Robot Hacks Applied . | . . . . Relay Couplers Released . | . . . . Fabnet Peak Effective % . | . . . . Robots Rewired . | . . . . Allies Hacked . | . . . . Hacks Repelled . | . . . . Allies | -11 -10 -10 -9 -------- Run | Yrd Mat Min Mat Total Allies . | . . . . Largest Group . | . . . . Highest-Rated Group . | . . . . Highest-Rated Ally . | . . . . Total Orders . | . . . . Ally Attacks . | . . . . Total Damage . | . . . . Kills . | . . . . Allies Corrupted . | . . . . Allies Melted . | . . . . Intel | -11 -10 -10 -9 ------- Run | Yrd Mat Min Mat Active Infowar (turns) . | . . . . Robot Analysis Total . | . . . . Derelict Logs Recovered . | . . . . Drone Launches . | . . . . Drone Recoveries . | . . . . Exploration | -11 -10 -10 -9 ------------- Run | Yrd Mat Min Mat Turns Passed 1102 | 202 356 180 364 Spaces Moved 580 | 121 217 113 129 Core 15 | 14 . . 1 Treads 548 | 107 217 113 111 Legs 17 | . . . 17 Wheels . | . . . . Hover . | . . . . Flight . | . . . . Fastest Speed 50 | 50 160 160 160 Average Speed 168 | 147 160 160 210 Slowest Speed 450 | 160 160 160 450 Overloaded Moves . | . . . . Propulsion Burnouts . | . . . . Robots Hopped . | . . . . Potential Cave-ins . | . . . . Cave-ins Triggered . | . . . . Exploration Rate (%) 21 | 9 29 36 12 Regions Visited 3 Branch Regions 1 Pre-discovered Areas . | . . . . Known Exits Taken . | . . . . Unknown Exits Taken 3 | 1 1 1 . Scrap Searched 1 | . . 1 . Spaces Dug . | . . . . Terrain Destroyed . | . . . . Melee . | . . . . Projectile . | . . . . AOE . | . . . . Terrain Rammed . | . . . . Walls Destroyed . | . . . . Machines Disabled . | . . . . Actions | -11 -10 -10 -9 --------- Run | Yrd Mat Min Mat Total 654 | 145 226 112 171 Wait 11 | 11 . . . Move 577 | 120 216 112 129 Hop . | . . . . Pick Up 16 | 8 4 . 4 Fast Attach . | . . . . Attach 14 | 6 2 . 6 Detach 2 | . . . 2 Swap 3 | . 2 . 1 Drop 4 | . 2 . 2 Fire 27 | . . . 27 Melee . | . . . . Ram . | . . . . Kick . | . . . . Crush . | . . . . Escape Stasis . | . . . . Rewire . | . . . . Trap . | . . . . Miscellaneous . | . . . . Route ------- -11/Scrapyard -10/Materials -10/Mines -9/Materials History --------- Turn | Location | Event 29 | -11/Scrapyard | Discovered new exit (range 15) 203 | -11/Scrapyard | Entered Materials 318 | -10/Materials | Build established: Mutant 553 | -10/Materials | Discovered new exit (range 5) 559 | -10/Materials | Entered Mines 644 | -10/Mines | Found a hidden stash of uninstalled traps 692 | -10/Mines | Discovered new exit (range 13) 739 | -10/Mines | Entered Materials 739 | -9/Materials | Evolved 2 slots: Power x1, Utility x1 1024 | -9/Materials | Core integrity fell below 50% 1051 | -9/Materials | Core integrity fell below 20% 1099 | -9/Materials | Lost 6 parts (1p2n2u1w) 1103 | -9/Materials | Destroyed by G-47 Trooper with Particle Gun Last Messages --------------- Lgt. Treads destroyed. K-01 Serf collects debris. Discarded Broken Targeting Computer. K-01 Serf collects debris. Power failure, Lgt. Ion Engine shutdown. Overheating: Lgt. Ion Engine damaged (-8). Overheating: Lgt. Armor Plating damaged (-34). K-01 Serf collects debris. Overheating: Lrg. Storage Unit damaged (-149). Acquired Aluminum Leg. K-01 Serf collects debris. R-06 Scavenger collects Lgt. Nuclear Core. Lgt. Armor Plating destroyed. K-01 Serf collects debris. R-06 Scavenger collects Heat Sink. K-01 Serf collects debris. R-06 Scavenger collects Heat Sink. Critical hit (Burn: +37). K-01 Serf collects debris. Critical hit (Burn: +37). Map ----- +----------------------------------------------------+ | ?????????????????????????????????????????? | | ?????????????????????????????????????????? | | ?????????????????????????????????????????? | | ????????????####?????????????????????????? | | ???????????## ## # ??????????? | | ???????????# ## # ??????????? | | ???????????# ## """ # """ ??????????? | | ???????????# ## """ # """ ??????????? | | ???????????# ## """ # """ ??????????? | | ######?????# ## # ??????????? | | # #?????# #####+#### """ ??????????? | | # ####### ## # """ ??????????? | | # # ### ### # """ ??????????? | | # # # ??????????? | | # + !! %+"""" ??????????? | | # # # """ ??????????? | | # # %####### # """ ??????????? | | # ### ### ## # ??????????? | | # #?# #?# * "#### ### ??????????? | | ######?# #?# T#??# #?######??????????? | | ???????# #?# "#??# #?# ??????????? | | ?????### ### #??# #?# ""??????????? | | ?????# ###+##### ### ""??????????? | | ?????# ! g g k # ""??????????? | | ?????# %g % + ??????????? | | ?????# ! % @ % a # ""??????????? | | ?????# ############# # ""??????????? | | ?????## ##???????????# # ""??????????? | | ??????# #????????????# # ??????????? | | ####### #?????????####+##+###??????????? | | # # ########### # #????????????? | | # # # ## # ###??????????? | | # # # """"" ## # ??????????? | | # # # """"" ## + ??????????? | | # """ # # """"" ## # ??????????? | | # """ + + #?????????????????????? | | # """ # # """ #?????????????????????? | | # # # """ #?????????????????????? | | # "" # # """ #?????????????????????? | | # "Y # # #?????????????????????? | | # "" # ##########?????????????????????? | | # # # #???????????????????????? | | ####### # #???????????????????????? | | ??????# # #???????????????????????? | | ??????# + #???????????????????????? | | ??????# # #???????????????????????? | | ??????# # #???????????????????????? | | ??????# ########???????????????????????? | | ??????#####??????????????????????????????? | | ?????????????????????????????????????????? | +----------------------------------------------------+ Best States ------------- Heat Dissipation 28 Energy Generation 15 Energy Capacity 275 Matter Stores 300 Matter Capacity 300 Sight Range 16 Terrain Scan Density 10 Armor Coverage 225 Evasion (%) 50 Targeting Accuracy 5 Recoil Reduction 2 Item Schematics ----------------- None Robot Schematics ------------------ None Fabricated ------------ Nothing Repaired ---------- Nothing Alien Tech Used ----------------- None Achievements -------------- None Challenges ------------ None Game ------ Seed TeleporterFocalSabre Manual? 0 Play Time 00:14:56 Cumulative 1.9 hours Start 2025.08.06 @ 12:19:18 End 2025.08.06 @ 12:32:24 Sessions 1 Manual Loads 0 Difficulty Rogue Special Mode None Game No. 5 Rogue 5 Adventurer 0 Explorer 0 Win Type - Total 0 Types 0/0/0/0/0/0/0/0/0/0 Lore% 2 Gallery% 6 Achievement% 8 Wizard Run 0 Options --------- Layout 0 ASCII 0 Keyboard 0 Movement Mouse Keybinds 0 Fullscreen 1 Font 18/SmallcapsGlow Map View 38x25 Zoom Use 98% Tactical HUD 0 Map Filters NONE Filters NONE Steam 1 RUN: 4c18258a-4ec5-4a04-b071-a79688cbe976